[Event "FTX Road to Miami Prelims 2022"]
[Site "Online"]
[Date "2022.07.04"]
[Round "5.4"]
[White "Erigaisi Arjun"]
[Black "Wojtaszek, Radoslaw"]
[Result "1-0"]
[ECO "B90"]
[WhiteElo "2689"]
[BlackElo "2708"]
[Annotator "ChessBase"]
[PlyCount "131"]
[EventDate "2022.07.10"]
[EventType "tourn"]
[EventCountry "NET"]
[SourceTitle "playchess.com"]
[Source "ChessBase"]
[SourceQuality "1"]
[TimeControl "40/5400+30:1800+30"]

1. e4 {[%emt 1:15:40]} c5 {[%emt 1:15:40]} 2. Nf3 {[%emt 0:00:23]} d6 {[%emt 0:00:21]} 3. d4 {[%emt 0:00:21]} cxd4 {[%emt 0:00:21]} 4. Nxd4 {[%emt 0:00:20]} Nf6 {[%emt 0:00:20]} 5. Nc3 {[%emt 0:00:20]} a6 {[%emt 0:00:21]} 6. Be3 {[%emt 0:00:23]} e5 {[%emt 0:00:25]} 7. Nf3 {[%emt 0:00:21]} Qc7 {[%emt 0:00:47]} 8. a4 {[%emt 0:00:26]} Be7 {[%emt 0:00:56]} 9. Be2 {[%emt 0:00:21]} Be6 {[%emt 0:00:37]} 10. O-O {[%emt 0:00:43]} Nbd7 {[%emt 0:00:35]} 11. a5 {[%emt 0:01:06]} O-O {[%emt 0:01:14]} 12. Nd5 {[%emt 0:00:29]} Nxd5 {[%emt 0:00:27]} 13. exd5 {[%emt 0:00:20]} Bg4 {[%emt 0:00:23]} 14. c4 {[%emt 0:01:25]} f5 {[%emt 0:01:04]} 15. Ra3 {[%emt 0:05:17]} Rae8 {[%emt 0:04:56]} 16. b4 {[%emt 0:02:04]} Bxf3 {[%emt 0:00:46]} 17. gxf3 {[%emt 0:00:23]} f4 {[%emt 0:02:50]} 18. Bc1 {[%emt 0:00:32]} e4 {[%emt 0:00:22]} 19. fxe4 {[%emt 0:00:41]} Ne5 {[%emt 0:00:26]} 20. f3 {[%emt 0:01:16]} Nxc4 {[%emt 0:01:33]} 21. Rc3 {[%emt 0:00:36]} b5 {[%emt 0:00:22]} 22. Kh1 {[%emt 0:01:10]} Rc8 {[%emt 0:01:00]} 23. Rg1 {[%emt 0:00:46]} Bf6 {[%emt 0:00:23]} 24. Rc2 {[%emt 0:00:36]} Be5 {[%emt 0:00:27]} 25. Qf1 {[%emt 0:00:40]} Rf7 {[%emt 0:01:22]} 26. Bxc4 {[%emt 0:01:58]} bxc4 {[%emt 0:00:23]} 27. Bd2 {[%emt 0:00:20]} Bd4 {[%emt 0:04:09]} 28. Rg2 {[%emt 0:00:26]} c3 {[%emt 0:01:00]} 29. Qxa6 {[%emt 0:00:46]} Qb7 {[%emt 0:00:21]} 30. Qxb7 {[%emt 0:02:27]} Rxb7 {[%emt 0:00:20]} 31. Bxf4 {[%emt 0:00:21]} Rxb4 {[%emt 0:00:22]} 32. h4 {[%emt 0:00:22]} Ra8 {[%emt 0:01:14]} 33. Bxd6 {[%emt 0:02:40]} Rb1+ {[%emt 0:00:22]} 34. Kh2 {[%emt 0:00:21]} Rxa5 {[%emt 0:00:20]} 35. Bf4 {[%emt 0:00:23]} Kf7 {[%emt 0:00:41]} 36. Kh3 {[%emt 0:01:13]} Raa1 {[%emt 0:00:52]} 37. e5 {[%emt 0:00:29]} Rb2 {[%emt 0:00:43]} 38. e6+ {[%emt 0:00:24]} Ke7 {[%emt 0:00:21]} 39. Rge2 {[%emt 0:00:58]} Rxc2 {[%emt 0:00:24]} 40. d6+ {[%emt 0:00:27]} Kf6 {[%emt 0:00:21]} 41. d7 {[%emt 0:30:20]} Rh1+ {[%emt 0:30:40]} 42. Kg4 {[%emt 0:00:28]} h5+ {[%emt 0:00:37]} 43. Kxh5 {[%emt 0:00:37]} g6+ {[%emt 0:00:36]} 44. Kg4 {[%emt 0:00:20]} Rg1+ {[%emt 0:00:20]} 45. Bg3 {[%emt 0:00:33]} Bb6 {[%emt 0:00:43]} 46. e7 {[%emt 0:00:22]} Bc7 {[%emt 0:00:26]} 47. e8=N+ {[%emt 0:00:26]} Kf7 {[%emt 0:00:26]} 48. Nxc7 {[%emt 0:00:22]} Rd2 {[%emt 0:00:20]} 49. Nb5 {[%emt 0:00:35]} Rxd7 {[%emt 0:00:47]} 50. Nxc3 {[%emt 0:00:22]} Rd4+ {[%emt 0:00:21]} 51. Ne4 {[%emt 0:00:22]} Rd3 {[%emt 0:00:22]} 52. Ra2 {[%emt 0:00:24]} Rb3 {[%emt 0:00:23]} 53. Ra7+ {[%emt 0:00:24]} Kf8 {[%emt 0:00:21]} 54. Kf4 {[%emt 0:00:39]} Rb5 {[%emt 0:00:25]} 55. Kg4 {[%emt 0:00:50]} Rb3 {[%emt 0:00:29]} 56. Ra6 {[%emt 0:00:31]} Kg7 {[%emt 0:00:24]} 57. Ng5 {[%emt 0:00:37]} Rb4+ {[%emt 0:00:40]} 58. Kh3 {[%emt 0:00:21]} Rh1+ {[%emt 0:00:29]} 59. Kg2 {[%emt 0:00:23]} Rd1 {[%emt 0:00:28]} 60. Be5+ {[%emt 0:00:42]} Kh6 {[%emt 0:00:26]} 61. Ra8 {[%emt 0:00:21]} Rg4+ {[%emt 0:01:00]} 62. fxg4 {[%emt 0:00:58]} Rd2+ {[%emt 0:00:24]} 63. Kf3 {[%emt 0:00:22]} Rf2+ {[%emt 0:00:22]} 64. Ke4 {[%emt 0:00:22]} Re2+ {[%emt 0:00:20]} 65. Kd5 {[%emt 0:00:21]} Rd2+ {[%emt 0:00:26]} 66. Bd4 {[%emt 0:00:21]} 1-0

[Event "FTX Road to Miami Prelims 2022"]
[Site "Online"]
[Date "2022.07.04"]
[Round "5.5"]
[White "Ju, Wenjun"]
[Black "Rapport, Richard"]
[Result "1-0"]
[ECO "E16"]
[WhiteElo "2560"]
[BlackElo "2764"]
[Annotator "ChessBase"]
[PlyCount "119"]
[EventDate "2022.07.10"]
[EventType "tourn"]
[EventCountry "NET"]
[SourceTitle "playchess.com"]
[Source "ChessBase"]
[SourceQuality "1"]
[TimeControl "40/5400+30:1800+30"]

1. d4 {[%emt 1:15:40]} Nf6 {[%emt 1:15:40]} 2. c4 {[%emt 0:00:22]} e6 {[%emt 0:00:22]} 3. Nf3 {[%emt 0:00:21]} b6 {[%emt 0:00:22]} 4. g3 {[%emt 0:00:23]} Bb7 {[%emt 0:00:21]} 5. Bg2 {[%emt 0:00:22]} Bb4+ {[%emt 0:00:21]} 6. Bd2 {[%emt 0:00:34]} a5 {[%emt 0:00:23]} 7. O-O {[%emt 0:00:22]} O-O {[%emt 0:00:21]} 8. Bf4 {[%emt 0:01:01]} Be7 {[%emt 0:00:23]} 9. Nc3 {[%emt 0:00:29]} Ne4 {[%emt 0:00:21]} 10. Nb5 {[%emt 0:00:26]} Na6 {[%emt 0:01:00]} 11. Rc1 {[%emt 0:01:06]} Qc8 {[%emt 0:00:25]} 12. d5 {[%emt 0:01:56]} d6 {[%emt 0:00:36]} 13. Nd2 {[%emt 0:01:56]} Nec5 {[%emt 0:00:51]} 14. Nb3 {[%emt 0:01:54]} e5 {[%emt 0:00:47]} 15. Nxc5 {[%emt 0:00:38]} Nxc5 {[%emt 0:00:25]} 16. Bd2 {[%emt 0:00:46]} f5 {[%emt 0:00:27]} 17. b3 {[%emt 0:01:22]} f4 {[%emt 0:00:42]} 18. e3 {[%emt 0:00:58]} Bg5 {[%emt 0:01:26]} 19. Qh5 {[%emt 0:01:40]} Bh6 {[%emt 0:00:56]} 20. exf4 {[%emt 0:03:53]} exf4 {[%emt 0:00:20]} 21. Rcd1 {[%emt 0:00:21]} Qd8 {[%emt 0:00:50]} 22. Bc3 {[%emt 0:00:35]} Bc8 {[%emt 0:00:30]} 23. Nd4 {[%emt 0:00:42]} Bd7 {[%emt 0:01:57]} 24. Rde1 {[%emt 0:01:05]} fxg3 {[%emt 0:01:12]} 25. hxg3 {[%emt 0:00:29]} Qf6 {[%emt 0:01:33]} 26. Ba1 {[%emt 0:00:31]} Qf7 {[%emt 0:00:57]} 27. Qxf7+ {[%emt 0:00:30]} Kxf7 {[%emt 0:00:32]} 28. Ne6 {[%emt 0:01:07]} Nxe6 {[%emt 0:00:27]} 29. dxe6+ {[%emt 0:00:23]} Bxe6 {[%emt 0:00:20]} 30. Bxa8 {[%emt 0:00:22]} Rxa8 {[%emt 0:00:20]} 31. f4 {[%emt 0:00:33]} g6 {[%emt 0:00:29]} 32. Rf2 {[%emt 0:00:50]} Bf8 {[%emt 0:00:22]} 33. f5 {[%emt 0:01:03]} gxf5 {[%emt 0:00:21]} 34. g4 {[%emt 0:00:20]} d5 {[%emt 0:00:21]} 35. gxf5 {[%emt 0:00:26]} Bd7 {[%emt 0:00:21]} 36. Rh2 {[%emt 0:01:08]} Bc5+ {[%emt 0:00:25]} 37. Kh1 {[%emt 0:00:23]} Kg8 {[%emt 0:01:37]} 38. Rg2+ {[%emt 0:00:36]} Kf8 {[%emt 0:00:21]} 39. cxd5 {[%emt 0:00:29]} Rd8 {[%emt 0:00:53]} 40. Bf6 {[%emt 0:00:57]} Re8 {[%emt 0:00:23]} 41. Rxe8+ {[%emt 0:30:37]} Kxe8 {[%emt 0:30:20]} 42. Rg5 {[%emt 0:00:49]} h6 {[%emt 0:00:23]} 43. Rh5 {[%emt 0:00:26]} c6 {[%emt 0:01:01]} 44. dxc6 {[%emt 0:00:31]} Bxc6+ {[%emt 0:00:20]} 45. Kh2 {[%emt 0:00:20]} Be4 {[%emt 0:00:40]} 46. Kg3 {[%emt 0:00:33]} Bb1 {[%emt 0:00:35]} 47. a3 {[%emt 0:00:48]} Bxa3 {[%emt 0:00:29]} 48. Bd4 {[%emt 0:00:22]} Bc2 {[%emt 0:02:04]} 49. Bxb6 {[%emt 0:00:31]} Bd6+ {[%emt 0:00:24]} 50. Kf2 {[%emt 0:00:27]} Bb4 {[%emt 0:00:40]} 51. f6 {[%emt 0:00:53]} Bxb3 {[%emt 0:00:37]} 52. Rxh6 {[%emt 0:00:36]} a4 {[%emt 0:00:34]} 53. Bd4 {[%emt 0:00:22]} Bf8 {[%emt 0:00:52]} 54. Rh7 {[%emt 0:00:30]} Bd5 {[%emt 0:00:38]} 55. Ra7 {[%emt 0:00:25]} a3 {[%emt 0:00:29]} 56. f7+ {[%emt 0:00:43]} Kd8 {[%emt 0:00:27]} 57. Bf6+ {[%emt 0:00:24]} Kc8 {[%emt 0:00:22]} 58. Be7 {[%emt 0:00:41]} Kb8 {[%emt 0:00:35]} 59. Bxf8 {[%emt 0:00:23]} Kxa7 {[%emt 0:00:24]} 60. Bc5+ {[%emt 0:00:21]} 1-0

[Event "FTX Road to Miami Prelims 2022"]
[Site "Online"]
[Date "2022.07.04"]
[Round "5.6"]
[White "Giri, Anish"]
[Black "Radjabov, Teimour"]
[Result "1-0"]
[ECO "E05"]
[WhiteElo "2760"]
[BlackElo "2738"]
[Annotator "ChessBase"]
[PlyCount "59"]
[EventDate "2022.07.10"]
[EventType "tourn"]
[EventCountry "NET"]
[SourceTitle "playchess.com"]
[Source "ChessBase"]
[SourceQuality "1"]
[TimeControl "40/5400+30:1800+30"]

1. d4 {[%emt 1:15:40]} Nf6 {[%emt 1:15:40]} 2. c4 {[%emt 0:00:21]} e6 {[%emt 0:00:21]} 3. Nf3 {[%emt 0:00:21]} d5 {[%emt 0:00:21]} 4. g3 {[%emt 0:00:21]} Be7 {[%emt 0:00:22]} 5. Bg2 {[%emt 0:00:21]} O-O {[%emt 0:00:20]} 6. O-O {[%emt 0:00:21]} dxc4 {[%emt 0:00:21]} 7. Qc2 {[%emt 0:00:20]} b5 {[%emt 0:00:33]} 8. a4 {[%emt 0:00:21]} Bb7 {[%emt 0:00:21]} 9. axb5 {[%emt 0:00:21]} a6 {[%emt 0:00:21]} 10. bxa6 {[%emt 0:00:22]} Nxa6 {[%emt 0:00:22]} 11. Qxc4 {[%emt 0:00:30]} Bd5 {[%emt 0:00:31]} 12. Qc3 {[%emt 0:00:23]} c5 {[%emt 0:00:44]} 13. Be3 {[%emt 0:00:26]} Ne4 {[%emt 0:00:23]} 14. Qc1 {[%emt 0:00:22]} cxd4 {[%emt 0:00:50]} 15. Bxd4 {[%emt 0:00:22]} Nec5 {[%emt 0:00:37]} 16. Bxc5 {[%emt 0:00:21]} Nxc5 {[%emt 0:00:29]} 17. Rxa8 {[%emt 0:00:21]} Qxa8 {[%emt 0:00:26]} 18. Nc3 {[%emt 0:00:21]} Bxf3 {[%emt 0:00:44]} 19. Bxf3 {[%emt 0:00:21]} Qb8 {[%emt 0:00:21]} 20. Rd1 {[%emt 0:01:46]} Qb4 {[%emt 0:00:33]} 21. Kg2 {[%emt 0:02:02]} Rb8 {[%emt 0:00:33]} 22. Qe3 {[%emt 0:00:23]} Bf8 {[%emt 0:01:01]} 23. h4 {[%emt 0:00:30]} Qa5 {[%emt 0:01:34]} 24. Rd2 {[%emt 0:01:26]} Nb3 {[%emt 0:00:23]} 25. Rd7 {[%emt 0:00:22]} Rd8 {[%emt 0:02:30]} 26. Rb7 {[%emt 0:02:00]} Nd4 {[%emt 0:00:25]} 27. Qf4 {[%emt 0:00:59]} f5 {[%emt 0:01:32]} 28. Qg5 {[%emt 0:04:22]} Rc8 {[%emt 0:01:02]} 29. Qe3 {[%emt 0:02:07]} Rd8 {[%emt 0:02:35]} 30. Nb5 {[%emt 0:00:46]} 1-0

[Event "FTX Road to Miami Prelims 2022"]
[Site "Online"]
[Date "2022.07.04"]
[Round "5.7"]
[White "Xiong, Jeffery"]
[Black "Aronian, Levon"]
[Result "1-0"]
[ECO "D21"]
[WhiteElo "2691"]
[BlackElo "2775"]
[Annotator "ChessBase"]
[PlyCount "67"]
[EventDate "2022.07.10"]
[EventType "tourn"]
[EventCountry "NET"]
[SourceTitle "playchess.com"]
[Source "ChessBase"]
[SourceQuality "1"]
[TimeControl "40/5400+30:1800+30"]

1. Nf3 {[%emt 1:15:40]} d5 {[%emt 1:15:40]} 2. d4 {[%emt 0:00:23]} c5 {[%emt 0:00:25]} 3. c4 {[%emt 0:00:35]} dxc4 {[%emt 0:00:23]} 4. d5 {[%emt 0:01:26]} e6 {[%emt 0:00:21]} 5. Nc3 {[%emt 0:00:42]} exd5 {[%emt 0:00:23]} 6. Qxd5 {[%emt 0:00:34]} Qxd5 {[%emt 0:00:47]} 7. Nxd5 {[%emt 0:00:20]} Bd6 {[%emt 0:00:21]} 8. Nd2 {[%emt 0:03:20]} Nc6 {[%emt 0:00:22]} 9. Nxc4 {[%emt 0:00:22]} Bb8 {[%emt 0:00:26]} 10. e4 {[%emt 0:02:28]} Nge7 {[%emt 0:01:53]} 11. Be3 {[%emt 0:00:23]} b6 {[%emt 0:00:38]} 12. O-O-O {[%emt 0:00:23]} O-O {[%emt 0:00:23]} 13. Be2 {[%emt 0:00:43]} Re8 {[%emt 0:00:50]} 14. Nxe7+ {[%emt 0:01:51]} Rxe7 {[%emt 0:00:52]} 15. e5 {[%emt 0:00:22]} Bb7 {[%emt 0:02:43]} 16. f4 {[%emt 0:00:24]} Bc7 {[%emt 0:01:34]} 17. Nd6 {[%emt 0:02:29]} Nd4 {[%emt 0:06:06]} 18. Bxd4 {[%emt 0:00:22]} Bxd6 {[%emt 0:00:21]} 19. Bf2 {[%emt 0:00:21]} Bc7 {[%emt 0:00:21]} 20. Bh4 {[%emt 0:00:45]} f6 {[%emt 0:00:22]} 21. Bc4+ {[%emt 0:00:33]} Kf8 {[%emt 0:00:26]} 22. Rhf1 {[%emt 0:02:37]} Bxg2 {[%emt 0:00:42]} 23. Rg1 {[%emt 0:00:23]} b5 {[%emt 0:01:07]} 24. Bxb5 {[%emt 0:00:38]} Be4 {[%emt 0:00:39]} 25. Bc4 {[%emt 0:00:23]} g5 {[%emt 0:00:35]} 26. Bf2 {[%emt 0:01:32]} Rc8 {[%emt 0:01:44]} 27. Ba6 {[%emt 0:00:22]} Rce8 {[%emt 0:00:20]} 28. Bxc5 {[%emt 0:00:48]} Bb6 {[%emt 0:00:24]} 29. exf6 {[%emt 0:00:48]} Bxc5 {[%emt 0:02:08]} 30. fxe7+ {[%emt 0:00:20]} Rxe7 {[%emt 0:00:20]} 31. Rd8+ {[%emt 0:00:23]} Kf7 {[%emt 0:00:24]} 32. Bc4+ {[%emt 0:00:22]} Kf6 {[%emt 0:00:21]} 33. Rf8+ {[%emt 0:00:22]} Kg7 {[%emt 0:00:33]} 34. Rxg5+ {[%emt 0:00:23]} 1-0

[Event "FTX Road to Miami Prelims 2022"]
[Site "Online"]
[Date "2022.07.04"]
[Round "5.8"]
[White "Tari, Aryan"]
[Black "Sevian, Samuel"]
[Result "0-1"]
[ECO "C79"]
[WhiteElo "2672"]
[BlackElo "2684"]
[Annotator "ChessBase"]
[PlyCount "76"]
[EventDate "2022.07.10"]
[EventType "tourn"]
[EventCountry "NET"]
[SourceTitle "playchess.com"]
[Source "ChessBase"]
[SourceQuality "1"]
[TimeControl "40/5400+30:1800+30"]

1. e4 {[%emt 1:15:40]} e5 {[%emt 1:15:40]} 2. Nf3 {[%emt 0:00:23]} Nc6 {[%emt 0:00:23]} 3. Bb5 {[%emt 0:00:21]} a6 {[%emt 0:00:21]} 4. Ba4 {[%emt 0:00:22]} d6 {[%emt 0:00:24]} 5. O-O {[%emt 0:00:35]} Bd7 {[%emt 0:00:26]} 6. c3 {[%emt 0:00:25]} Nf6 {[%emt 0:00:28]} 7. Re1 {[%emt 0:00:33]} g6 {[%emt 0:00:26]} 8. d4 {[%emt 0:00:22]} Bg7 {[%emt 0:00:21]} 9. h3 {[%emt 0:00:45]} O-O {[%emt 0:00:30]} 10. Bc2 {[%emt 0:00:20]} h6 {[%emt 0:01:17]} 11. Nbd2 {[%emt 0:00:43]} Nh5 {[%emt 0:02:40]} 12. Nf1 {[%emt 0:00:32]} Re8 {[%emt 0:01:36]} 13. a3 {[%emt 0:01:06]} b5 {[%emt 0:02:12]} 14. Be3 {[%emt 0:01:27]} Na5 {[%emt 0:00:32]} 15. b3 {[%emt 0:01:03]} Rc8 {[%emt 0:01:16]} 16. Qd2 {[%emt 0:01:02]} g5 {[%emt 0:01:05]} 17. Rad1 {[%emt 0:01:20]} Be6 {[%emt 0:00:34]} 18. dxe5 {[%emt 0:03:38]} Nxb3 {[%emt 0:02:18]} 19. Qe2 {[%emt 0:00:21]} Nf4 {[%emt 0:02:45]} 20. Bxf4 {[%emt 0:00:24]} gxf4 {[%emt 0:00:20]} 21. exd6 {[%emt 0:03:15]} Bc4 {[%emt 0:00:22]} 22. Bd3 {[%emt 0:00:21]} cxd6 {[%emt 0:00:37]} 23. Bxc4 {[%emt 0:00:33]} bxc4 {[%emt 0:01:14]} 24. e5 {[%emt 0:01:05]} d5 {[%emt 0:00:37]} 25. N1d2 {[%emt 0:01:54]} Qa5 {[%emt 0:00:41]} 26. Nb1 {[%emt 0:00:48]} Rcd8 {[%emt 0:00:25]} 27. Qc2 {[%emt 0:01:12]} Nc5 {[%emt 0:00:22]} 28. Nd4 {[%emt 0:00:21]} Qc7 {[%emt 0:00:59]} 29. Qf5 {[%emt 0:00:23]} Nd3 {[%emt 0:00:41]} 30. Re2 {[%emt 0:00:21]} Rxe5 {[%emt 0:00:52]} 31. Rxe5 {[%emt 0:00:23]} Bxe5 {[%emt 0:01:18]} 32. Nd2 {[%emt 0:00:30]} Bxd4 {[%emt 0:00:35]} 33. cxd4 {[%emt 0:00:20]} Qb6 {[%emt 0:00:32]} 34. Qg4+ {[%emt 0:00:58]} Qg6 {[%emt 0:00:22]} 35. Qf3 {[%emt 0:00:20]} Qf5 {[%emt 0:00:39]} 36. Rb1 {[%emt 0:00:50]} c3 {[%emt 0:00:36]} 37. Rb3 {[%emt 0:00:21]} Rc8 {[%emt 0:00:25]} 38. g4 {[%emt 0:00:56]} Qg6 {[%emt 0:01:04]} 0-1

[Event "FTX Road to Miami Prelims 2022"]
[Site "Online"]
[Date "2022.07.04"]
[Round "6.1"]
[White "Niemann, Hans Moke"]
[Black "Sevian, Samuel"]
[Result "0-1"]
[ECO "C54"]
[WhiteElo "2688"]
[BlackElo "2684"]
[Annotator "ChessBase"]
[PlyCount "80"]
[EventDate "2022.07.10"]
[EventType "tourn"]
[EventCountry "NET"]
[SourceTitle "playchess.com"]
[Source "ChessBase"]
[SourceQuality "1"]
[TimeControl "40/5400+30:1800+30"]

1. e4 {[%emt 1:15:40]} e5 {[%emt 1:15:40]} 2. Nf3 {[%emt 0:00:23]} Nc6 {[%emt 0:00:21]} 3. Bc4 {[%emt 0:00:31]} Bc5 {[%emt 0:00:23]} 4. c3 {[%emt 0:00:22]} Nf6 {[%emt 0:00:21]} 5. d3 {[%emt 0:00:21]} d6 {[%emt 0:00:21]} 6. O-O {[%emt 0:00:21]} O-O {[%emt 0:00:28]} 7. Re1 {[%emt 0:00:27]} a6 {[%emt 0:00:30]} 8. a4 {[%emt 0:00:29]} h6 {[%emt 0:00:25]} 9. h3 {[%emt 0:00:42]} a5 {[%emt 0:00:23]} 10. Nbd2 {[%emt 0:01:44]} Be6 {[%emt 0:00:25]} 11. Bxe6 {[%emt 0:00:22]} fxe6 {[%emt 0:00:23]} 12. Nf1 {[%emt 0:00:20]} Nh5 {[%emt 0:02:15]} 13. Be3 {[%emt 0:00:29]} Bxe3 {[%emt 0:02:39]} 14. Rxe3 {[%emt 0:00:23]} Nf4 {[%emt 0:00:58]} 15. Kh2 {[%emt 0:00:23]} d5 {[%emt 0:00:29]} 16. g3 {[%emt 0:00:41]} Ng6 {[%emt 0:00:53]} 17. Kg2 {[%emt 0:00:28]} Qd6 {[%emt 0:00:27]} 18. N1h2 {[%emt 0:00:31]} Rad8 {[%emt 0:00:31]} 19. Qb3 {[%emt 0:00:23]} b6 {[%emt 0:02:44]} 20. Rd1 {[%emt 0:00:23]} Rf7 {[%emt 0:00:36]} 21. h4 {[%emt 0:00:23]} Nf8 {[%emt 0:01:43]} 22. Ng4 {[%emt 0:01:39]} d4 {[%emt 0:00:47]} 23. cxd4 {[%emt 0:00:58]} exd4 {[%emt 0:00:54]} 24. Re2 {[%emt 0:01:20]} Nd7 {[%emt 0:00:22]} 25. e5 {[%emt 0:00:45]} Qe7 {[%emt 0:01:15]} 26. Qb5 {[%emt 0:01:03]} Ndb8 {[%emt 0:00:30]} 27. Rc1 {[%emt 0:00:51]} Nb4 {[%emt 0:00:29]} 28. Qc4 {[%emt 0:00:41]} Rd5 {[%emt 0:00:49]} 29. Ree1 {[%emt 0:00:43]} Qd7 {[%emt 0:00:36]} 30. h5 {[%emt 0:00:56]} N8a6 {[%emt 0:00:30]} 31. Rcd1 {[%emt 0:01:59]} Rxf3 {[%emt 0:01:44]} 32. Kxf3 {[%emt 0:00:21]} Rc5 {[%emt 0:00:21]} 33. Qb3 {[%emt 0:00:24]} Rc2 {[%emt 0:00:21]} 34. Kg2 {[%emt 0:02:31]} Nc5 {[%emt 0:00:22]} 35. Qa3 {[%emt 0:00:21]} Qc6+ {[%emt 0:00:30]} 36. Kh3 {[%emt 0:00:21]} Qf3 {[%emt 0:00:25]} 37. Rc1 {[%emt 0:00:45]} Ncxd3 {[%emt 0:00:32]} 38. Rxc2 {[%emt 0:00:32]} Nxc2 {[%emt 0:00:23]} 39. Qe7 {[%emt 0:00:26]} Nf4+ {[%emt 0:00:22]} 40. Kh4 {[%emt 0:00:37]} g5+ {[%emt 0:00:20]} 0-1

[Event "FTX Road to Miami Prelims 2022"]
[Site "Online"]
[Date "2022.07.04"]
[Round "6.2"]
[White "Aronian, Levon"]
[Black "Tari, Aryan"]
[Result "1-0"]
[ECO "C59"]
[WhiteElo "2775"]
[BlackElo "2672"]
[Annotator "ChessBase"]
[PlyCount "79"]
[EventDate "2022.07.10"]
[EventType "tourn"]
[EventCountry "NET"]
[SourceTitle "playchess.com"]
[Source "ChessBase"]
[SourceQuality "1"]
[TimeControl "40/5400+30:1800+30"]

1. e4 {[%emt 1:15:40]} e5 {[%emt 1:15:40]} 2. Nf3 {[%emt 0:00:22]} Nc6 {[%emt 0:00:22]} 3. Bc4 {[%emt 0:00:21]} Nf6 {[%emt 0:00:22]} 4. Ng5 {[%emt 0:00:21]} d5 {[%emt 0:00:22]} 5. exd5 {[%emt 0:00:21]} Na5 {[%emt 0:00:20]} 6. Bb5+ {[%emt 0:00:21]} c6 {[%emt 0:00:21]} 7. dxc6 {[%emt 0:00:22]} bxc6 {[%emt 0:00:20]} 8. Be2 {[%emt 0:00:21]} h6 {[%emt 0:00:23]} 9. Nh3 {[%emt 0:00:21]} Bc5 {[%emt 0:00:21]} 10. d3 {[%emt 0:00:22]} O-O {[%emt 0:00:44]} 11. O-O {[%emt 0:00:46]} Nb7 {[%emt 0:00:50]} 12. Kh1 {[%emt 0:01:05]} Bxh3 {[%emt 0:01:08]} 13. gxh3 {[%emt 0:00:23]} Qd7 {[%emt 0:01:36]} 14. Rg1 {[%emt 0:00:25]} Kh8 {[%emt 0:02:02]} 15. Qf1 {[%emt 0:00:27]} Nd5 {[%emt 0:01:04]} 16. Nd2 {[%emt 0:00:36]} f5 {[%emt 0:01:53]} 17. Nf3 {[%emt 0:00:22]} Rae8 {[%emt 0:00:46]} 18. c3 {[%emt 0:01:16]} e4 {[%emt 0:02:07]} 19. Nh4 {[%emt 0:00:22]} Rf6 {[%emt 0:00:21]} 20. d4 {[%emt 0:01:16]} Bd6 {[%emt 0:00:29]} 21. Bh5 {[%emt 0:00:22]} Ree6 {[%emt 0:01:30]} 22. Ng6+ {[%emt 0:00:35]} Kh7 {[%emt 0:00:27]} 23. Qg2 {[%emt 0:00:22]} Nd8 {[%emt 0:02:36]} 24. a3 {[%emt 0:00:46]} f4 {[%emt 0:04:08]} 25. c4 {[%emt 0:01:27]} f3 {[%emt 0:01:07]} 26. Qg4 {[%emt 0:00:23]} e3 {[%emt 0:00:30]} 27. cxd5 {[%emt 0:00:52]} exf2 {[%emt 0:00:21]} 28. Rf1 {[%emt 0:00:45]} Re1 {[%emt 0:00:29]} 29. Bd2 {[%emt 0:00:23]} Rxa1 {[%emt 0:00:34]} 30. Rxa1 {[%emt 0:00:20]} Qb7 {[%emt 0:00:41]} 31. Qe4 {[%emt 0:01:05]} Kg8 {[%emt 0:01:08]} 32. Rf1 {[%emt 0:00:54]} Qxb2 {[%emt 0:00:54]} 33. Rxf2 {[%emt 0:00:22]} cxd5 {[%emt 0:00:21]} 34. Qe8+ {[%emt 0:00:43]} Bf8 {[%emt 0:00:21]} 35. Nxf8 {[%emt 0:00:23]} Qa1+ {[%emt 0:01:05]} 36. Qe1 {[%emt 0:00:23]} Qxd4 {[%emt 0:00:29]} 37. Bc3 {[%emt 0:00:32]} Qe4 {[%emt 0:00:35]} 38. Qxe4 {[%emt 0:00:23]} dxe4 {[%emt 0:00:25]} 39. Bxf6 {[%emt 0:00:22]} e3 {[%emt 0:00:22]} 40. Rxf3 {[%emt 0:00:24]} 1-0